fUSD/lending_fUSD_20260316
["ID","MTS","AMOUNT","RATE_DAILY","PERIOD"]
[408472911,1773697839567,-10034.10715792,0.0001352,2]
[408472912,1773697839576,-234.04,0.00013606,2]
[408472913,1773697839586,-151.0,0.00013617,2]
[408472914,1773697839595,-151.0,0.00013617,2]
[408472915,1773697839605,-43698.27812366,0.00013619,2]
[408472916,1773697839615,-500.0,0.00013619,2]
[408472917,1773697839625,-433.63878392,0.00013619,2]
[408472918,1773697839635,-500.0,0.00013619,2]
[408472919,1773697839645,-500.0,0.00013619,2]
[408472920,1773697839654,-500.0,0.00013619,2]
[408472921,1773697839664,-500.0,0.00013619,2]
[408472922,1773697839674,-500.0,0.00013619,2]
[408472923,1773697839686,-500.0,0.00013619,2]
[408472924,1773697839696,-173.55159624,0.00013619,2]
[408472925,1773697839705,-500.0,0.00013619,2]
[408472926,1773697839715,-500.0,0.00013619,2]
[408472927,1773697839724,-592.45068656,0.00013619,2]
[408472928,1773697839734,-500.0,0.00013619,2]
[408472929,1773697839743,-500.0,0.00013619,2]
[408472930,1773697839752,-500.0,0.00013619,2]
[408472931,1773697839761,-500.0,0.00013619,2]
[408472932,1773697839771,-500.0,0.00013619,2]
[408472933,1773697839780,-80969.3028376,0.0001362,2]
[408472934,1773697839790,-8895.2423324,0.0001362,2]
[408472935,1773697839799,-200.0,0.0001362,2]
[408472936,1773697839808,-2956.534081,0.0001362,2]
[408472937,1773697839818,-200.0,0.0001362,2]
[408472938,1773697839827,-28344.1163924,0.0001362,2]
[408472939,1773697839837,-499.63913957,0.0001362,2]
[408472940,1773697839847,-276.45567888,0.0001362,2]
[408472941,1773697839856,-163.0,0.0001362,3]
[408472942,1773697839865,-173.0,0.0001362,3]
[408472943,1773697839875,-1600.0,0.0001367,2]
[408472944,1773697839884,-500.0,0.00013673,2]
[408472945,1773697839893,-500.0,0.00013673,2]
[408472946,1773697839903,-500.0,0.00013673,2]
[408472947,1773697839913,-502.27112461,0.00013673,2]
[408472948,1773697839922,-500.0,0.00013673,2]
[408472949,1773697839931,-500.0,0.00013673,2]
[408472950,1773697839941,-500.0,0.00013673,2]
[408472951,1773697839950,-500.0,0.00013673,2]
[408472952,1773697839959,-500.0,0.00013673,2]
[408472953,1773697839968,-500.0,0.00013673,2]
[408472954,1773697839978,-500.0,0.00013673,2]
[408472955,1773697839992,-168.66583428,0.00013673,2]
[408472956,1773697840001,-500.0,0.00013698,2]
[408472958,1773697840010,-500.0,0.00013698,2]
[408472959,1773697840020,-500.0,0.00013698,2]
[408472960,1773697840030,-500.0,0.00013698,2]
[408472961,1773697840040,-500.0,0.00013698,2]
[408472962,1773697840050,-500.0,0.00013698,2]
[408472963,1773697840062,-500.0,0.00013698,2]
[408472964,1773697840071,-500.0,0.00013698,2]
[408472965,1773697840081,-500.0,0.00013698,2]
[408472966,1773697840090,-500.0,0.00013698,2]
[408472967,1773697840100,-500.0,0.00013698,2]
[408472968,1773697840109,-500.0,0.00013698,2]
[408472969,1773697840118,-500.0,0.00013698,2]
[408472970,1773697840128,-500.0,0.00013698,2]
[408472971,1773697840137,-500.0,0.00013698,2]
[408472972,1773697840146,-500.0,0.00013698,2]
[408472973,1773697840155,-500.0,0.00013698,2]
[408472974,1773697840164,-500.0,0.00013698,2]
[408472975,1773697840173,-500.0,0.00013698,2]
[408472977,1773697840182,-500.0,0.00013698,2]
[408472979,1773697840191,-500.0,0.00013698,2]
[408472980,1773697840199,-500.0,0.00013698,2]
[408472982,1773697840209,-500.0,0.00013698,2]
[408472984,1773697840218,-500.0,0.00013698,2]
[408472986,1773697840227,-500.0,0.00013698,2]
[408472988,1773697840236,-500.0,0.00013698,2]
[408472990,1773697840245,-500.0,0.00013698,2]
[408472991,1773697840254,-500.0,0.00013698,2]
[408472992,1773697840264,-500.0,0.00013698,2]
[408472993,1773697840273,-500.0,0.00013698,2]
[408472994,1773697840283,-500.0,0.00013698,2]
[408472995,1773697840292,-500.0,0.00013698,2]
[408472996,1773697840301,-500.0,0.00013698,2]
[408472997,1773697840311,-500.0,0.00013698,2]
[408472998,1773697840320,-200.0,0.00013699,2]
[408472999,1773697840330,-500.0,0.00013699,2]
[408473000,1773697840339,-14807.5,0.00013699,2]
[408473001,1773697840349,-9999.99,0.00013699,2]
[408473002,1773697840358,-355.68630597,0.00013699,2]
[408473003,1773697840367,-19679.11423558,0.000137,2]
[408473004,1773697840376,-968.02,0.000137,2]
[408473005,1773697840386,-768.936649,0.000137,2]
[408473006,1773697840395,-768.936649,0.000137,2]
[408473007,1773697840406,-768.936649,0.000137,2]
[408473008,1773697840415,-768.936649,0.000137,2]
[408473009,1773697840426,-685.65,0.000137,2]
[408473010,1773697840435,-685.65,0.000137,2]
[408473011,1773697840446,-685.65,0.000137,2]
[408473012,1773697840455,-685.65,0.000137,2]
[408473013,1773697840464,-500.0,0.00013719,2]
[408473014,1773697840474,-619.28774558,0.00013719,2]
[408473015,1773697840483,-151.0,0.0001372,2]
[408473016,1773697840500,-151.0,0.0001372,2]
[408473017,1773697840509,-151.0,0.0001372,2]
[408473018,1773697840519,-1695.8,0.0001374,2]
[408473019,1773697840528,-200.0,0.00013756,2]
[408473020,1773697840538,-200.0,0.00013756,2]
[408473021,1773697840547,-2685.58,0.0001378,2]
[408473022,1773697840556,-1244.39,0.00013792,2]
[408473023,1773697840565,-166.66,0.00013804,2]
[408473024,1773697840575,-200.0,0.00013894,2]
[408473025,1773697840587,-500.0,0.00013918,2]
[408473026,1773697840598,-200.0,0.00013959,2]
[408473027,1773697840608,-1244.39,0.00014066,2]
[408473028,1773697840618,-685.65,0.00014122,2]
[408473029,1773697840627,-671.4,0.00014128,2]
[408473030,1773697840636,-500.0,0.00014132,2]
[408473031,1773697840646,-750.0,0.00014132,2]
[408473032,1773697840657,-500.0,0.00014132,2]
[408473033,1773697840666,-500.0,0.00014132,2]
[408473034,1773697840676,-500.0,0.00014132,2]
[408473035,1773697840685,-500.0,0.00014132,2]
[408473036,1773697840694,-500.0,0.00014132,2]
[408473037,1773697840705,-500.0,0.00014132,2]
[408473038,1773697840716,-500.0,0.00014132,2]
[408473039,1773697840728,-500.0,0.00014132,2]
[408473040,1773697840739,-500.0,0.00014132,2]
[408473041,1773697840750,-500.0,0.00014132,2]
[408473042,1773697840760,-500.0,0.00014132,2]
[408473043,1773697840772,-500.0,0.00014132,2]
[408473044,1773697840783,-500.0,0.00014132,2]
[408473045,1773697840794,-500.0,0.00014132,2]
[408473046,1773697840803,-399.80320651,0.00014132,2]
[408473047,1773697840812,-11850.16008873,0.00014132,2]
[408473048,1773697840837,-380.4854278,0.00014132,2]
[408473049,1773697840850,-6009.74317596,0.00014132,2]
[408473050,1773697840859,-468.865553,0.00014132,2]
[408473051,1773697840869,-468.865553,0.00014132,2]
[408473052,1773697840879,-468.865553,0.00014132,2]
[408473053,1773697840889,-468.865553,0.00014132,2]
[408473054,1773697840899,-1695.8,0.00014133,2]
[408473055,1773697840907,-151.0,0.00014133,2]
[408473056,1773697840917,-166.66,0.00014219,2]
[408473057,1773697840927,-500.0,0.00014221,2]
[408473058,1773697840938,-1000.0,0.00014221,2]
[408473059,1773697840948,-698.21115659,0.00014221,2]
[408473060,1773697840961,-301.78884341,0.00014221,2]
[408473061,1773697840972,-229.83813791,0.00014221,2]
[408473062,1773697840986,-152.00387375,0.00014221,2]
[408473063,1773697840995,-522.46467637,0.00014229,2]
[408473078,1773697842445,-151.0,0.00013699,2]
[408473079,1773697842454,-9511.64248152,0.00014229,2]
[408473080,1773697842464,-409.642737,0.00014235,7]
[408473081,1773697842473,-1001.92427581,0.00014247,2]
[408473082,1773697842483,-878.62,0.00014263,2]
[408473083,1773697842493,-160.0,0.00014265,7]
[408473084,1773697842502,-276.143423,0.00014265,7]
[408473085,1773697842512,-392.286847,0.00014265,7]
[408473086,1773697842521,-234.04,0.00014286,2]
[408473087,1773697842531,-500.0,0.00014293,2]
[408473088,1773697842540,-500.0,0.00014293,2]
[408473089,1773697842549,-500.0,0.00014293,2]
[408473090,1773697842558,-151.0,0.00014294,2]
[408473091,1773697842567,-151.0,0.00014294,2]
[408473092,1773697842576,-1112.901906,0.00014294,2]
[408473093,1773697842585,-1112.901906,0.00014294,2]
[408473094,1773697842594,-1112.901906,0.00014294,2]
[408473095,1773697842604,-1112.901906,0.00014294,2]
[408473096,1773697842612,-500.0,0.00014329,2]
[408473097,1773697842622,-151.0,0.00014329,2]
[408473098,1773697842631,-1244.39,0.0001434,2]
[408473099,1773697842641,-220.597865,0.00014341,7]
[408473100,1773697842649,-972.42083728,0.00014345,2]
[408473101,1773697842661,-3325.14357164,0.00014345,2]
[408473102,1773697842670,-2351.0,0.00014363,2]
[408473103,1773697842815,-236.067627,0.00014388,2]
[408473104,1773697842825,-236.067627,0.00014388,2]
[408473105,1773697842835,-236.067627,0.00014388,2]
[408473106,1773697842845,-236.067627,0.00014388,2]
[408473107,1773697842854,-151.0,0.00014504,2]
[408473108,1773697842864,-260.39732779,0.00014507,2]
[408473109,1773697842873,-151.0,0.00014525,2]
[408473110,1773697842883,-151.0,0.00014525,2]
[408473111,1773697842892,-151.0,0.00014525,2]
[408473112,1773697842902,-1695.8,0.00014525,2]
[408473113,1773697842911,-782.67,0.00014537,2]
[408473114,1773697842920,-878.62,0.00014537,2]
[408473115,1773697842929,-160.0,0.00014556,7]
[408473116,1773697842938,-170.631484,0.00014556,7]
[408473117,1773697842947,-181.262969,0.00014556,7]
[408473118,1773697842957,-297.885548,0.00014556,7]
[408473119,1773697842966,-160.0,0.00014556,7]
[408473120,1773697842976,-169.681662,0.00014556,7]
[408473121,1773697842988,-179.363325,0.00014556,7]
[408473122,1773697842998,-433.0,0.00014611,2]
[408473123,1773697843008,-1244.39,0.00014614,2]
[408473124,1773697843018,-166.66,0.00014634,2]
[408473125,1773697843028,-152.0,0.00014742,3]
[408473127,1773697843037,-1500.0,0.00014768,2]
[408473129,1773697843046,-1500.0,0.00014768,2]
[408473131,1773697843055,-500.0,0.00014795,2]
[408473133,1773697843066,-782.67,0.00014811,2]
[408473135,1773697843075,-878.62,0.00014811,2]
[408473136,1773697843084,-3932.74,0.00014846,2]
[408473137,1773697843093,-18240.38869249,0.00014853,2]
[408473138,1773697843102,-1244.39,0.00014888,2]
[408473139,1773697843111,-171.96548914,0.000149,2]
[408473140,1773697843121,-1695.8,0.00014918,2]
[408473141,1773697843131,-10034.10715789,0.00014938,2]
[408473142,1773697843140,-234.04,0.00014966,2]
[408473143,1773697843150,-4177.205,0.0001499,2]
[408473144,1773697843159,-201.8,0.0001499,2]
[408473145,1773697843168,-151.0,0.0001499,2]
[408473146,1773697843179,-250.0,0.00015,2]
[408473147,1773697843188,-2157.0,0.00015014,5]
[408473148,1773697843197,-252.68,0.00015068,2]
[408473149,1773697843206,-782.67,0.00015085,2]
[408473150,1773697843215,-878.62,0.00015085,2]
[408473151,1773697843224,-1244.39,0.00015162,2]
[408473152,1773697843233,-1600.0,0.00015189,2]
[408473153,1773697843243,-695.80660391,0.00015261,2]
[408473154,1773697843252,-3423.98364308,0.00015261,2]
[408473155,1773697843261,-4297.56440892,0.00015271,2]
[408473156,1773697843270,-200.0,0.00015272,2]
[408473157,1773697843279,-387.15,0.00015284,2]
[408473158,1773697843288,-173.0,0.00015296,3]
[408473159,1773697843298,-952.93052344,0.00015316,2]
[408473160,1773697843307,-1162.81842167,0.00015316,2]
[408473162,1773697843316,-500.0,0.00015332,2]
[408473164,1773697843325,-500.0,0.00015332,2]
[408473166,1773697843334,-500.0,0.00015332,2]
[408473167,1773697843342,-500.0,0.00015332,2]
[408473169,1773697843351,-387.17453338,0.00015336,2]
[408473171,1773697843360,-1984.7968461,0.00015345,2]
[408473173,1773697843374,-387.15,0.00015345,2]
[408473175,1773697843383,-1744.0,0.00015347,5]
[408473177,1773697843392,-18066.6935092,0.00015348,2]
[408473179,1773697843401,-151.0,0.00015348,2]
[408473181,1773697843410,-768.936649,0.00015348,2]
[408473183,1773697843420,-768.936649,0.00015348,2]
[408473185,1773697843428,-768.936649,0.00015348,2]
[408473187,1773697843437,-768.936649,0.00015348,2]
[408473188,1773697843447,-151.0,0.00015358,2]
[408473189,1773697843456,-151.0,0.00015358,2]
[408473190,1773697843465,-782.67,0.00015359,2]
[408473191,1773697843474,-878.62,0.00015359,2]
[408473192,1773697843484,-1067.54895648,0.0001536,5]
[408473193,1773697843493,-500.0,0.00015361,2]
[408473194,1773697843503,-500.0,0.00015361,2]
[408473195,1773697843512,-603.6,0.00015361,2]
[408473196,1773697843521,-500.0,0.00015413,2]
[408473197,1773697843531,-500.0,0.00015413,2]
[408473198,1773697843540,-500.4316981,0.00015413,2]
[408473199,1773697843549,-500.0,0.00015413,2]
[408473200,1773697843558,-500.0,0.00015413,2]
[408473201,1773697843568,-500.0,0.00015413,2]
[408473202,1773697843577,-1244.39,0.00015436,2]
[408473203,1773697843586,-151.0,0.00015461,2]
[408473204,1773697843595,-151.0,0.00015461,2]
[408473205,1773697843605,-2222.39,0.00015507,2]
[408473206,1773697843614,-502.0,0.00015507,2]
[408473207,1773697843624,-302.34,0.00015571,2]
[408473208,1773697843634,-18240.38869249,0.00015574,2]
[408473209,1773697843643,-468.865553,0.00015574,2]
[408473210,1773697843652,-468.865553,0.00015574,2]
[408473211,1773697843661,-468.865553,0.00015574,2]
[408473212,1773697843671,-468.865553,0.00015574,2]
[408473213,1773697843680,-236.067627,0.00015579,2]
[408473214,1773697843690,-236.067627,0.00015579,2]
[408473215,1773697843699,-236.067627,0.00015579,2]
[408473216,1773697843710,-236.067627,0.00015579,2]
[408473217,1773697843719,-1700.0,0.00015582,2]
[408473218,1773697843728,-1800.0,0.00015582,2]
[408473219,1773697843737,-700.0,0.00015582,2]
[408473220,1773697843747,-316.92,0.00015632,2]
[408473221,1773697843756,-369.32,0.00015632,2]
[408473222,1773697843766,-234.04,0.00015646,2]
[408473223,1773697843775,-10034.10715789,0.00015647,2]
[408473224,1773697843784,-151.0,0.00015647,2]
[408473225,1773697843794,-151.0,0.00015647,2]
[408473226,1773697843803,-151.0,0.00015647,2]
[408473227,1773697843812,-165.49,0.00015651,2]
[408473228,1773697843821,-1244.39,0.0001571,2]
[408473229,1773697843831,-442.8680381,0.0001573,2]
[408473230,1773697843840,-151.0,0.0001573,2]
[408473231,1773697843849,-151.0,0.0001573,2]
[408473232,1773697843859,-1112.901906,0.0001573,2]
[408473233,1773697843868,-1112.901906,0.0001573,2]
[408473234,1773697843878,-1112.901906,0.0001573,2]
[408473235,1773697843887,-1112.901906,0.0001573,2]
[408473236,1773697843896,-4031.224216,0.00015733,2]
[408473237,1773697843906,-5000.0,0.00015794,2]
[408473238,1773697843916,-3292.0,0.00015799,2]
[408473239,1773697843926,-172.58490106,0.00015821,2]
[408473240,1773697843936,-13321.54818618,0.00015883,2]
[408473241,1773697843946,-2000.0,0.0001589,2]
[408473242,1773697843955,-736.0,0.00015894,2]
[408473243,1773697843965,-1717.0,0.00015894,5]
[408473244,1773697843974,-2222.39,0.00015895,2]
[408473245,1773697843987,-505.66816994,0.0001596,2]
[408473246,1773697843996,-504.69586218,0.0001596,2]
[408473247,1773697844006,-1000.0,0.0001596,2]
[408473248,1773697844015,-1000.0,0.0001596,2]
[408473249,1773697844026,-500.0,0.00015973,2]
[408473250,1773697844036,-156.29588656,0.00015981,2]
[408473251,1773697844045,-1244.39,0.00015984,2]
[408473252,1773697844055,-996.0,0.00016,2]
[408473253,1773697844066,-151.0,0.00016002,2]
[408473254,1773697844076,-6324.4272299,0.00016002,2]
[408473255,1773697844085,-500.0,0.00016115,2]
[408473256,1773697844094,-9999.99,0.00016116,2]
[408473257,1773697844103,-500.0,0.00016137,2]
[408473258,1773697844112,-150.0,0.00016164,2]
[408473259,1773697844121,-500.0,0.00016164,2]
[408473260,1773697844132,-500.0,0.00016164,2]
[408473261,1773697844141,-168.0,0.00016188,2]
[408473262,1773697844150,-4297.56440892,0.00016197,2]
[408473263,1773697844159,-150.0,0.00016219,2]
[408473264,1773697844169,-500.0,0.00016219,2]
[408473265,1773697844178,-500.0,0.00016219,2]
[408473266,1773697844187,-151.0,0.00016243,2]
[408473267,1773697844196,-163.477,0.00016246,2]
[408473268,1773697844206,-1044.0,0.00016246,2]
[408473269,1773697844215,-1354.88,0.00016246,2]
[408473270,1773697844224,-3511.0,0.00016246,2]
[408473271,1773697844233,-274.138,0.00016246,2]
[408473272,1773697844243,-1260.0,0.00016246,2]
[408473273,1773697844253,-1214.0,0.00016246,2]
[408473274,1773697844262,-939.582,0.00016246,2]
[408473275,1773697844271,-3756.0,0.00016246,2]
[408473276,1773697844281,-6003.0,0.00016246,2]
[408473277,1773697844290,-2464.0,0.00016246,2]
[408473278,1773697844300,-768.936649,0.00016249,2]
[408473279,1773697844310,-768.936649,0.00016249,2]
[408473280,1773697844319,-768.936649,0.00016249,2]
[408473281,1773697844329,-768.936649,0.00016249,2]
[408473282,1773697844340,-1244.39,0.00016258,2]
[408473283,1773697844350,-150.0,0.00016274,2]
[408473284,1773697844360,-500.0,0.00016274,2]
[408473285,1773697844370,-500.0,0.00016274,2]
[408473286,1773697844380,-2222.39,0.00016282,2]
[408473287,1773697844390,-18240.38869249,0.00016295,2]
[408473288,1773697844399,-151.0,0.00016299,2]
[408473289,1773697844409,-165.49,0.00016311,2]
[408473290,1773697844420,-234.04,0.00016327,2]
[408473291,1773697844429,-181.48481368,0.00016328,2]
[408473292,1773697844439,-300.0,0.00016328,2]
[408473293,1773697844448,-500.0,0.00016328,2]
[408473294,1773697844457,-1000.0,0.00016333,2]
[408473295,1773697844466,-236.067627,0.00016338,2]
[408473296,1773697844475,-236.067627,0.00016338,2]
[408473297,1773697844486,-236.067627,0.00016338,2]
[408473298,1773697844496,-236.067627,0.00016338,2]
[408473299,1773697844505,-500.0,0.00016338,2]
[408473300,1773697844514,-500.0,0.00016338,2]
[408473301,1773697844524,-500.0,0.00016338,2]
[408473302,1773697844535,-10000.0,0.00016338,2]
[408473303,1773697844544,-506.0,0.00016341,2]
[408473304,1773697844553,-10034.10715789,0.00016356,2]
[408473305,1773697844562,-468.865553,0.00016356,2]
[408473306,1773697844572,-468.865553,0.00016356,2]
[408473307,1773697844581,-468.865553,0.00016356,2]
[408473308,1773697844591,-468.865553,0.00016356,2]
[408473309,1773697844600,-1843.392318,0.0001637,7]
[408473310,1773697844609,-205.300461,0.0001637,7]
[408473311,1773697844618,-500.0,0.00016383,2]
[408473312,1773697844628,-500.0,0.00016438,2]
[408473313,1773697844638,-500.0,0.00016438,2]
[408473314,1773697844648,-500.0,0.00016438,2]
[408473315,1773697844657,-151.0,0.00016438,2]
[408473316,1773697844666,-151.0,0.00016438,2]
[408473317,1773697844675,-151.0,0.00016438,2]
[408473318,1773697844685,-500.0,0.00016438,2]
[408473319,1773697844694,-960.0,0.00016438,2]
[408473320,1773697844704,-716.06496,0.00016438,2]
[408473321,1773697844712,-151.0,0.00016438,2]
[408473322,1773697844722,-1112.901906,0.00016438,2]
[408473323,1773697844731,-1112.901906,0.00016438,2]
[408473324,1773697844741,-1112.901906,0.00016438,2]
[408473325,1773697844751,-1112.901906,0.00016438,2]
[408473326,1773697844759,-2185.78,0.00016438,2]
[408473327,1773697844768,-252.68,0.00016438,2]
[408473328,1773697844777,-151.0,0.00016438,2]
[408473329,1773697844787,-151.0,0.00016438,2]
[408473330,1773697844796,-151.0,0.00016438,2]
[408473331,1773697844806,-151.0,0.00016438,2]
[408473332,1773697844815,-151.0,0.00016438,2]
[408473333,1773697844824,-151.0,0.00016438,2]
[408473334,1773697844833,-151.0,0.00016438,2]
[408473335,1773697844842,-151.0,0.00016438,2]
[408473336,1773697844851,-223.367328,0.00016438,2]
[408473337,1773697844860,-151.0,0.00016438,2]
[408473338,1773697844869,-151.0,0.00016438,2]
[408473339,1773697844879,-151.0,0.00016438,2]
[408473340,1773697844889,-759.347535,0.00016438,2]
[408473341,1773697844898,-759.347535,0.00016438,2]
[408473342,1773697844907,-759.347535,0.00016438,2]
[408473343,1773697844917,-759.347535,0.00016438,2]
[408473344,1773697844927,-759.347535,0.00016438,2]
[408473345,1773697844935,-759.347535,0.00016438,2]
[408473346,1773697844945,-759.347535,0.00016438,2]
[408473347,1773697844954,-759.347535,0.00016438,2]
[408473348,1773697844963,-759.347535,0.00016438,2]
[408473349,1773697845086,-759.347535,0.00016438,2]
[408473350,1773697845095,-759.347535,0.00016438,2]
[408473351,1773697845105,-759.347535,0.00016438,2]
[408473352,1773697845114,-151.0,0.00016438,2]
[408473353,1773697845123,-151.0,0.00016438,2]
[408473354,1773697845133,-151.0,0.00016438,2]
[408473356,1773697845143,-151.0,0.00016438,2]
[408473358,1773697845152,-151.0,0.00016438,2]
[408473359,1773697845161,-151.0,0.00016438,2]
[408473360,1773697845170,-198.37970352,0.00016438,2]
[408473361,1773697845179,-1000.0,0.00016458,2]
[408473362,1773697845188,-151.0,0.00016468,2]
[408473364,1773697845198,-151.0,0.00016468,2]
[408473365,1773697845207,-507.73038979,0.00016492,2]
[408473366,1773697845216,-500.0,0.00016492,2]
[408473367,1773697845225,-500.0,0.00016492,2]
[408473368,1773697845234,-500.0,0.00016492,2]
[408473369,1773697845243,-500.0,0.00016492,2]
[408473370,1773697845252,-500.0,0.00016492,2]
[408473371,1773697845261,-500.0,0.00016492,2]
[408473372,1773697845271,-500.0,0.00016492,2]
[408473373,1773697845280,-500.0,0.00016492,2]
[408473374,1773697845289,-500.0,0.00016492,2]
[408473375,1773697845298,-500.0,0.00016492,2]
[408473376,1773697845308,-500.0,0.00016492,2]
[408473377,1773697845317,-500.0,0.00016492,2]
[408473378,1773697845326,-500.0,0.00016492,2]
[408473379,1773697845335,-500.0,0.00016492,2]
[408473380,1773697845345,-992.690392,0.00016492,7]
[408473381,1773697845354,-500.0,0.00016493,2]
[408473382,1773697845364,-500.0,0.00016493,2]
[408473383,1773697845373,-960.0,0.00016493,2]
[408473384,1773697845383,-1500.0,0.00016508,2]
[408473385,1773697845392,-1500.0,0.00016508,2]
[408473386,1773697845401,-1244.42253864,0.00016532,2]
[408473387,1773697845410,-1411.1704606,0.00016534,2]
[408473388,1773697845419,-500.0,0.00016541,2]
[408473389,1773697845428,-500.0,0.00016541,2]
[408473390,1773697845437,-500.0,0.00016541,2]
[408473391,1773697845447,-411.93023927,0.00016541,2]
[408473392,1773697845456,-500.0,0.00016541,2]
[408473393,1773697845465,-500.0,0.00016541,2]
[408473394,1773697845474,-500.0,0.00016541,2]
[408473395,1773697845483,-506.0,0.00016546,2]
[408473396,1773697845492,-500.0,0.00016548,2]
[408473397,1773697845501,-250.87816678,0.00016548,2]
[408473398,1773697845511,-960.0,0.00016548,2]
[408473399,1773697845520,-362.81727531,0.000166,2]
[408473400,1773697845528,-500.0,0.00016602,2]
[408473401,1773697845538,-960.0,0.00016602,2]
[408473402,1773697845547,-716.06497,0.00016638,2]
[408473403,1773697845557,-168.0,0.00016646,2]
[408473404,1773697845566,-471.76094671,0.00016657,2]
[408473405,1773697845575,-960.0,0.00016657,2]
[408473406,1773697845585,-1000.0,0.00016661,2]
[408473407,1773697845594,-500.0,0.00016667,2]
[408473408,1773697845603,-2222.39,0.0001667,2]
[408473409,1773697845612,-4547.7,0.00016691,2]
[408473410,1773697845621,-168.0,0.00016691,2]
[408473411,1773697845633,-275.0,0.00016698,7]
[408473412,1773697845643,-167.0,0.00016698,7]
[408473413,1773697845652,-1600.0,0.00016708,2]
[408473414,1773697845662,-960.0,0.00016712,2]
[408473415,1773697845672,-166.71,0.00016712,2]
[408473416,1773697845681,-282.0,0.00016713,7]
[408473417,1773697845690,-150.0,0.00016713,7]
[408473418,1773697845699,-150.0,0.00016713,7]
[408473419,1773697845709,-150.0,0.00016713,7]
[408473420,1773697845718,-188.0,0.00016713,7]
[408473421,1773697845727,-222.0,0.00016713,7]
[408473422,1773697845736,-150.0,0.00016723,2]
[408473423,1773697845745,-207.0,0.00016725,2]
[408473424,1773697845755,-506.0,0.00016734,2]
[408473426,1773697845764,-1340.484969,0.00016739,7]
[408473427,1773697845773,-379.0,0.00016742,2]
[408473428,1773697845783,-250.0,0.00016748,2]
[408473429,1773697845791,-236.084,0.00016748,2]
[408473430,1773697845800,-201.441,0.00016748,2]
[408473431,1773697845810,-219.836,0.00016748,2]
[408473432,1773697845819,-162.197,0.00016748,2]
[408473433,1773697845828,-250.0,0.00016748,2]
[408473434,1773697845837,-150.139,0.00016748,2]
[408473435,1773697845846,-193.069,0.00016748,2]
[408473436,1773697845856,-165.662,0.00016748,2]
[408473437,1773697845864,-214.387,0.00016748,2]
[408473438,1773697845874,-250.0,0.00016748,2]
[408473439,1773697845885,-237.851,0.00016748,2]
[408473441,1773697845894,-178.0,0.00016748,2]
[408473442,1773697845903,-960.0,0.00016767,2]
[408473443,1773697845912,-1232.0,0.0001677,2]
[408473444,1773697845921,-506.0,0.00016774,2]
[408473445,1773697845930,-960.0,0.00016822,2]
[408473446,1773697845940,-152.0,0.00016831,4]
[408473447,1773697845949,-716.06497,0.00016838,2]
[408473448,1773697845958,-1232.0,0.00016864,2]
[408473449,1773697845967,-960.0,0.00016876,2]
[408473450,1773697845977,-213.00181962,0.00016898,2]
[408473451,1773697845989,-6079.9912,0.000169,2]
[408473452,1773697845998,-833.25383244,0.000169,2]
[408473453,1773697846008,-151.0,0.000169,2]
[408473454,1773697846016,-482.4509949,0.000169,2]
[408473455,1773697846026,-4900.89314253,0.000169,2]